bitfinex/quotes_BTCUSD_20220212
["timestamp","ask_amount","ask_price","bid_price","bid_amount"]
[1644657554273,0.30059012,42327.0,42325.0,0.0473]
[1644657554473,0.30059012,42327.0,42326.0,0.0473]
[1644657554675,0.25009622,42327.0,42326.0,0.0473]
[1644657555379,0.00049389,42328.0,42327.0,0.04278819]
[1644657555776,0.00049389,42328.0,42327.0,0.0473]
[1644657556022,0.05,42331.0,42327.0,0.0473]
[1644657556221,0.00049389,42330.0,42327.0,0.0473]
[1644657556420,0.60393193,42330.0,42327.0,0.0473]
[1644657556821,0.09459999,42326.0,42325.0,0.05257491]
[1644657557021,0.09459999,42326.0,42325.0,0.04987491]
[1644657559774,0.09459999,42326.0,42325.0,0.09987491]
[1644657559979,0.09459999,42326.0,42325.0,0.13325319]
[1644657560579,0.09459999,42326.0,42325.0,0.09987491]
[1644657561177,0.09459999,42326.0,42325.0,0.1371473]
[1644657561378,0.09459999,42326.0,42325.0,0.09987491]
[1644657561778,0.09459999,42326.0,42325.0,0.13354182]
[1644657562580,0.09459999,42326.0,42325.0,0.09882272]
[1644657562880,0.09459999,42326.0,42325.0,0.13917698]
[1644657563082,0.09459999,42326.0,42325.0,0.09882272]
[1644657563530,0.09459999,42326.0,42321.0,0.20420564]
[1644657563724,0.09459999,42326.0,42322.0,0.0473]
[1644657564525,0.095132,42326.0,42322.0,0.0473]
[1644657565525,0.09459999,42326.0,42322.0,0.0473]
[1644657565729,0.095132,42326.0,42322.0,0.0473]
[1644657565925,0.095132,42326.0,42321.0,0.15420564]
[1644657566126,0.095132,42326.0,42322.0,0.0473]
[1644657566527,0.095132,42326.0,42325.0,0.0015246]
[1644657566730,0.09459999,42326.0,42325.0,0.0488246]
[1644657566929,0.095132,42326.0,42325.0,0.0488246]
[1644657567979,0.09459999,42326.0,42325.0,0.0488246]
[1644657571233,0.47433629,42326.0,42325.0,0.0488246]
[1644657571434,0.48578607,42326.0,42325.0,0.0488246]
[1644657571735,0.48693316,42326.0,42325.0,0.0488246]
[1644657571932,0.48135316,42326.0,42325.0,0.0488246]
[1644657572935,0.09016708,42326.0,42325.0,0.0488246]
[1644657573134,0.09016708,42326.0,42325.0,0.08759165]
[1644657573336,0.09016708,42326.0,42325.0,0.0988246]
[1644657575177,0.09016708,42326.0,42325.0,0.14200078]
[1644657575677,0.09016708,42326.0,42325.0,0.14036697]
[1644657575877,0.09016708,42326.0,42325.0,0.0988246]
[1644657577881,0.09016708,42326.0,42325.0,0.14752835]
[1644657579324,0.14016708,42326.0,42325.0,0.0015246]
[1644657579524,0.14016708,42326.0,42315.0,0.68764669]
[1644657579724,0.05,42321.0,42315.0,0.5]
[1644657579923,0.05,42321.0,42313.0,0.2318431]
[1644657580125,0.05,42321.0,42314.0,0.18764669]
[1644657580323,0.23824311,42321.0,42315.0,0.04153955]
[1644657580524,0.28824311,42321.0,42316.0,0.03857041]
[1644657581326,0.28824311,42321.0,42313.0,0.04864909]
[1644657581523,0.3206014,42320.0,42315.0,0.03662119]
[1644657581724,0.23877514,42321.0,42316.0,0.04654476]
[1644657581928,0.00053203,42321.0,42316.0,0.04654476]
[1644657582272,0.41744668,42326.0,42316.0,0.04654476]
[1644657582273,0.05,42322.0,42316.0,0.04654476]
[1644657582476,0.05,42318.0,42312.0,0.0001]
[1644657582876,0.25177836,42317.0,42312.0,0.0001]
[1644657583073,0.25177836,42317.0,42309.0,0.04254726]
[1644657583276,0.25177836,42317.0,42310.0,0.0473]
[1644657583474,0.22719941,42316.0,42310.0,0.0474]
[1644657583674,0.07812008,42313.0,42310.0,0.0501]
[1644657583880,0.07812008,42313.0,42311.0,0.0001]
[1644657584275,0.07812008,42313.0,42309.0,0.00051378]
[1644657584680,0.05,42310.0,42306.0,0.009559]
[1644657584981,0.75,42312.0,42306.0,0.009559]
[1644657584982,0.75,42312.0,42309.0,0.00051377]
[1644657585178,0.05,42310.0,42309.0,0.00051377]
[1644657585377,0.08586252,42305.0,42300.0,0.00032842]
[1644657585580,0.25983206,42304.0,42300.0,0.00032842]
[1644657585780,0.25983206,42304.0,42298.0,0.00032842]
[1644657586032,0.22230968,42303.0,42297.0,0.00032842]
[1644657586227,0.22230968,42303.0,42296.0,0.00032842]
[1644657586429,0.22230968,42303.0,42296.0,0.0001]
[1644657586629,0.22230968,42303.0,42296.0,0.00032842]
[1644657586828,0.6299102,42303.0,42296.0,0.00032842]
[1644657587128,0.07503863,42298.0,42296.0,0.00022842]
[1644657587328,0.35813309,42297.0,42294.0,0.00032842]
[1644657587529,0.23073018,42296.0,42294.0,0.0001]
[1644657587730,0.23073018,42296.0,42294.0,0.00022842]
[1644657587731,0.35269835,42295.0,42294.0,0.00022842]
[1644657587934,0.35269835,42295.0,42292.0,0.0001]
[1644657588131,0.35269835,42295.0,42292.0,0.00032842]
[1644657588333,0.35269835,42295.0,42292.0,0.0001]
[1644657588532,0.35269835,42295.0,42292.0,0.00032842]
[1644657588731,0.35269835,42295.0,42292.0,0.0001]
[1644657588935,0.35269835,42295.0,42292.0,0.00032842]
[1644657589140,0.35269835,42295.0,42292.0,0.0001]
[1644657589331,0.35269835,42295.0,42292.0,0.00032842]
[1644657589531,0.35269835,42295.0,42292.0,0.0001]
[1644657589781,0.35269835,42295.0,42292.0,0.00032842]
[1644657589980,0.35269835,42295.0,42292.0,0.0001]
[1644657590181,0.35269835,42295.0,42292.0,0.00032842]
[1644657590380,0.23073018,42296.0,42292.0,0.0001]
[1644657590581,0.23073018,42296.0,42292.0,0.00032842]
[1644657590582,0.05,42295.0,42292.0,0.00032842]
[1644657590783,0.05,42295.0,42292.0,0.0001]
[1644657590784,0.40760052,42294.0,42292.0,0.0001]
[1644657591079,0.05,42295.0,42292.0,0.00032842]
[1644657591279,0.05,42295.0,42289.0,0.00032842]
[1644657591482,0.08634538,42291.0,42289.0,0.0001]
[1644657591681,0.08634538,42291.0,42289.0,0.00032842]
[1644657591882,0.00085139,42294.0,42289.0,0.0001]
[1644657592080,0.00085139,42294.0,42289.0,0.00032842]
[1644657592282,0.00085139,42294.0,42289.0,0.0001]
[1644657592483,0.00085139,42294.0,42287.0,0.00032842]
[1644657592685,0.22631183,42289.0,42287.0,0.0001]
[1644657592883,0.22631183,42289.0,42287.0,0.00032842]
[1644657593083,0.35604717,42288.0,42287.0,0.0001]
[1644657593283,0.35604717,42288.0,42287.0,0.00032842]
[1644657593533,0.22631183,42289.0,42287.0,0.0001]
[1644657593727,0.00085139,42294.0,42287.0,0.00032842]
[1644657593928,0.00085139,42294.0,42287.0,0.0001]
[1644657594129,0.00085139,42294.0,42287.0,0.00032842]
[1644657594328,0.00085139,42294.0,42287.0,0.0001]
[1644657594627,0.07567056,42293.0,42288.0,0.00053178]
[1644657594830,0.19152239,42290.0,42288.0,0.0007602]
[1644657595028,0.35402641,42289.0,42288.0,0.0007602]
[1644657595228,0.19152239,42290.0,42288.0,0.00053178]
[1644657595429,0.35308535,42289.0,42288.0,0.00053178]
[1644657595629,0.19152239,42290.0,42287.0,0.00032842]
[1644657596733,0.00175799,42288.0,42287.0,0.00032842]
[1644657602535,0.00175799,42288.0,42286.0,0.71387566]
[1644657603338,0.00175799,42288.0,42287.0,0.5]
[1644657603737,0.00175799,42288.0,42287.0,0.6473]
[1644657605476,0.00175799,42288.0,42287.0,0.91308331]
[1644657607874,0.00175799,42288.0,42287.0,0.91318331]
[1644657608926,0.34031136,42294.0,42287.0,0.6474]
[1644657609128,0.34031136,42294.0,42288.0,0.5001]
[1644657609327,0.42714468,42297.0,42290.0,0.5]
[1644657609530,0.42714468,42297.0,42291.0,0.0001]
[1644657610128,0.65979443,42297.0,42292.0,0.00045417]
[1644657610329,0.65979443,42297.0,42293.0,0.5]
[1644657610526,0.65979443,42297.0,42294.0,0.0001]
[1644657611430,0.65979443,42297.0,42294.0,0.5001]
[1644657611631,0.65979443,42297.0,42295.0,0.0001]
[1644657611831,0.3791707,42296.0,42295.0,0.0001]
[1644657615883,0.3791707,42296.0,42295.0,0.5001]
[1644657616328,0.3791707,42296.0,42295.0,0.0001]
[1644657616526,0.3791707,42296.0,42293.0,0.00045943]
[1644657616728,0.2517816,42296.0,42293.0,0.00045943]
[1644657617129,0.2517816,42296.0,42291.0,0.0001]
[1644657617334,0.07272066,42292.0,42291.0,0.0001]
[1644657617528,0.46192091,42292.0,42291.0,0.0001]
[1644657617733,0.44829015,42292.0,42291.0,0.0001]
[1644657617930,0.44571946,42292.0,42291.0,0.00032466]
[1644657618131,0.44221609,42292.0,42291.0,0.0001]
[1644657618330,0.07272066,42292.0,42291.0,0.00032466]
[1644657618531,0.43551412,42292.0,42289.0,0.00045902]
[1644657618932,0.05,42291.0,42289.0,0.00045902]
[1644657619137,0.4,42291.0,42289.0,0.00045902]
[1644657619432,0.00091803,42288.0,42287.0,0.00022466]
[1644657619629,0.00091803,42288.0,42283.0,0.00183636]
[1644657619630,0.00091803,42288.0,42285.0,0.00022466]
[1644657619882,0.25898029,42287.0,42285.0,0.00022466]
[1644657620080,0.25898029,42287.0,42283.0,0.00032466]
[1644657620289,0.05,42285.0,42282.0,0.53]
[1644657620482,0.07696285,42284.0,42283.0,0.00022445]
[1644657620783,0.07696285,42284.0,42282.0,0.53022445]
[1644657620784,0.22696285,42284.0,42282.0,0.53022445]
[1644657620981,0.07696285,42284.0,42283.0,0.00022445]
[1644657621181,0.07696285,42284.0,42282.0,0.03022445]
[1644657622682,0.37601793,42283.0,42282.0,0.03022445]
[1644657623735,0.75,42283.0,42281.0,0.0022]
[1644657623935,0.8,42283.0,42281.0,0.0022]
[1644657624738,0.05,42282.0,42281.0,0.0022]
[1644657625337,1.10670191,42283.0,42279.0,0.0011]
[1644657625539,0.05,42281.0,42279.0,0.0011]
[1644657625936,0.38280609,42280.0,42279.0,0.0011]
[1644657626138,0.38280609,42280.0,42279.0,0.53195778]
[1644657626336,0.38280609,42280.0,42279.0,0.53205778]
[1644657627587,0.30670191,42283.0,42279.0,0.53205778]
[1644657627788,0.25670191,42283.0,42280.0,0.0001]
[1644657629388,0.05,42282.0,42280.0,0.0001]
[1644657629589,0.35618414,42281.0,42280.0,0.0001]
[1644657629988,0.35618414,42281.0,42279.0,0.50705778]
[1644657629989,0.5,42280.0,42279.0,0.50705778]
[1644657630188,0.86024852,42280.0,42278.0,0.0033]
[1644657630391,0.25670191,42283.0,42279.0,0.14358462]
[1644657630588,0.38409706,42282.0,42279.0,0.14358462]
[1644657630793,0.58409706,42282.0,42279.0,0.14358462]
[1644657631032,0.2,42280.0,42278.0,0.0033]
[1644657631229,0.36630445,42279.0,42278.0,0.0033]
[1644657631832,0.35,42280.0,42278.0,0.0033]
[1644657632029,0.36757579,42279.0,42278.0,0.0033]
[1644657634531,0.75,42278.0,42277.0,0.0033]
[1644657634779,0.40227092,42281.0,42277.0,0.0033]
[1644657635182,0.50227092,42281.0,42277.0,0.0033]
[1644657635380,0.50227092,42281.0,42277.0,0.0038273]
[1644657636481,0.50227092,42281.0,42277.0,0.0033]
[1644657636681,0.50227092,42281.0,42278.0,0.00205612]
[1644657637886,0.05,42279.0,42278.0,0.00205612]
[1644657638384,0.50227092,42281.0,42278.0,0.00205612]
[1644657638830,0.05,42279.0,42278.0,0.0022799]
[1644657639133,0.38007469,42279.0,42278.0,0.0022799]
[1644657639530,0.43007469,42279.0,42278.0,0.0022799]
[1644657639729,0.38007469,42279.0,42278.0,0.0022799]
[1644657640531,0.38038425,42282.0,42278.0,0.0022799]
[1644657641337,0.38038425,42282.0,42278.0,0.00075107]
[1644657642132,0.37150191,42283.0,42278.0,0.00075107]
[1644657642382,0.77150191,42283.0,42278.0,0.00022378]
[1644657642580,0.77150191,42283.0,42278.0,0.00052729]
[1644657642780,0.77150191,42283.0,42278.0,0.00075107]
[1644657643581,0.77150191,42283.0,42278.0,0.00022378]
[1644657643786,0.87150191,42283.0,42277.0,0.00558078]
[1644657643981,0.87150191,42283.0,42278.0,0.00022378]
[1644657644183,0.72150191,42283.0,42277.0,0.00558078]
[1644657644381,0.39458458,42282.0,42277.0,0.00558078]
[1644657644581,0.15,42279.0,42277.0,0.00558078]
[1644657644882,0.38064687,42278.0,42277.0,0.00558078]
[1644657645084,0.50858313,42282.0,42277.0,0.00610755]
[1644657645881,0.40858313,42282.0,42277.0,0.00610755]
[1644657646135,0.50858313,42282.0,42277.0,0.00610755]
[1644657646935,0.50858313,42282.0,42279.0,0.00205401]
[1644657648734,0.50858313,42282.0,42279.0,0.00227779]
[1644657648937,0.40858313,42282.0,42279.0,0.00227779]
[1644657649782,0.40858313,42282.0,42279.0,0.00205401]
[1644657649982,0.40858313,42282.0,42279.0,0.00227779]
[1644657650784,0.40178916,42289.0,42279.0,0.00227779]
[1644657650985,0.1206,42289.0,42279.0,0.00205401]
[1644657651184,0.1206,42289.0,42279.0,0.00237779]
[1644657651783,0.19729548,42287.0,42279.0,0.00237779]
[1644657652286,0.19729548,42287.0,42281.0,0.00021661]
[1644657652885,0.19729548,42287.0,42281.0,0.00044039]
[1644657653087,0.00091803,42288.0,42281.0,0.00021661]
[1644657653289,0.00091803,42288.0,42281.0,0.00022378]
[1644657653549,0.00091803,42288.0,42282.0,0.04782622]
[1644657653737,0.00091803,42288.0,42283.0,0.0473]
[1644657654139,0.00091803,42288.0,42283.0,0.04752378]
[1644657654537,0.00091803,42288.0,42283.0,0.04804999]
[1644657654738,0.00091803,42288.0,42283.0,0.04782621]
[1644657655840,0.00091803,42288.0,42283.0,0.04804999]
[1644657656040,0.00091803,42288.0,42283.0,0.04782621]
[1644657656245,0.00083319,42288.0,42283.0,0.04782621]
[1644657656743,0.00083319,42288.0,42283.0,0.04752378]
[1644657656940,0.00083319,42288.0,42283.0,0.04762378]
[1644657657144,0.00083319,42288.0,42283.0,0.04752378]
[1644657657580,0.00083319,42288.0,42283.0,0.04762378]
[1644657658284,0.00083319,42288.0,42283.0,0.04814771]
[1644657658683,0.00083319,42288.0,42286.0,0.24244197]
[1644657658984,0.00083319,42288.0,42287.0,0.0474]
[1644657663136,0.00083319,42288.0,42287.0,0.40128271]
[1644657663335,0.00083319,42288.0,42287.0,0.50128271]
[1644657663535,0.00083319,42288.0,42287.0,0.76398483]
[1644657663735,0.00083319,42288.0,42287.0,0.81042241]
[1644657663935,0.00083319,42288.0,42287.0,1.39761609]
[1644657665389,0.00083319,42288.0,42287.0,0.78335656]
[1644657665687,0.00083319,42288.0,42287.0,0.42947385]
[1644657665887,0.00083319,42288.0,42287.0,0.78109204]
[1644657666086,0.00083319,42288.0,42287.0,0.64977517]
[1644657666286,0.00083319,42288.0,42287.0,0.64977146]
[1644657666486,0.00083319,42288.0,42287.0,0.85821451]
[1644657666686,0.00083319,42288.0,42287.0,0.85964268]
[1644657666886,0.00083319,42288.0,42287.0,0.55829309]
[1644657669134,0.00083319,42288.0,42287.0,0.85958459]
[1644657669840,0.00083319,42288.0,42287.0,0.55829309]
[1644657672139,0.00083319,42288.0,42287.0,0.34985004]
[1644657672386,0.00083319,42288.0,42287.0,0.24985004]
[1644657672586,0.00083319,42288.0,42287.0,0.34985004]
[1644657673387,0.00083319,42288.0,42287.0,0.14882817]
[1644657673590,0.00083319,42288.0,42287.0,0.00152817]
[1644657673790,0.00083319,42288.0,42287.0,0.00142817]
[1644657678633,0.00083319,42288.0,42287.0,0.00152817]
[1644657679632,0.00083319,42288.0,42287.0,0.20241017]
[1644657680688,0.00074024,42288.0,42287.0,0.20241017]
[1644657680888,0.00074024,42288.0,42287.0,0.00152817]
[1644657681687,0.20148628,42289.0,42287.0,0.00152817]
[1644657682187,0.07441345,42288.0,42287.0,0.00152817]
[1644657682587,0.20148628,42289.0,42287.0,0.00152817]
[1644657684743,0.20121799,42289.0,42287.0,0.00152817]
[1644657685541,0.40716538,42295.0,42287.0,0.00152817]
[1644657685743,0.40716538,42295.0,42287.0,0.20241017]
[1644657685942,0.40716538,42295.0,42288.0,0.0001]
[1644657686741,0.40716538,42295.0,42288.0,0.250982]
[1644657686941,0.40716538,42295.0,42289.0,0.0001]
[1644657687142,0.33568791,42296.0,42289.0,0.200982]
[1644657687383,0.33568791,42296.0,42290.0,0.0001]
[1644657687782,0.33568791,42296.0,42288.0,0.0001]
[1644657688587,0.25885854,42289.0,42288.0,0.0001]
[1644657689286,0.32456724,42289.0,42287.0,0.05152817]
[1644657689485,0.32456724,42289.0,42288.0,0.0001]
[1644657689985,0.25885854,42289.0,42287.0,0.25263067]
[1644657690184,0.25885854,42289.0,42288.0,0.0001]
[1644657692540,0.15040499,42289.0,42288.0,0.0001]
[1644657692742,0.15040499,42289.0,42288.0,0.2512025]
[1644657693344,0.37091971,42297.0,42288.0,0.2512025]
[1644657693556,0.37091971,42297.0,42291.0,0.20104618]
[1644657693743,0.37091971,42297.0,42292.0,0.0001]
[1644657694345,0.23921693,42296.0,42292.0,0.0001]
[1644657695590,0.37768934,42298.0,42292.0,0.0001]
[1644657695591,0.1171,42298.0,42292.0,0.0001]
[1644657695797,0.1171,42298.0,42294.0,0.20104618]
[1644657696092,0.0004874,42302.0,42299.0,0.06148564]
[1644657696292,0.0004874,42302.0,42300.0,0.2483684]
[1644657696492,0.19274645,42307.0,42300.0,0.2483684]
[1644657696692,0.1915686,42305.0,42300.0,0.2483684]
[1644657696895,0.08722356,42303.0,42300.0,0.2483684]
[1644657697694,0.08673611,42303.0,42300.0,0.2483684]
[1644657699340,0.0004871,42304.0,42300.0,0.2483684]
[1644657700143,0.5694,42309.0,42300.0,0.2483684]
[1644657700344,0.0004871,42304.0,42300.0,0.2483684]
[1644657701346,0.08075046,42306.0,42300.0,0.2983684]
[1644657701545,0.00048712,42304.0,42301.0,0.00146906]
[1644657701745,0.26520245,42302.0,42301.0,0.04876906]
[1644657702146,0.26520245,42302.0,42301.0,0.00146906]
[1644657704999,0.08075046,42306.0,42301.0,0.00146906]
[1644657705198,0.00048712,42304.0,42301.0,0.00146906]
[1644657705802,0.07825137,42306.0,42301.0,0.00146906]
[1644657706050,0.25321879,42302.0,42301.0,0.00146906]
[1644657706441,0.25321879,42302.0,42299.0,0.26255404]
[1644657706642,0.25321879,42302.0,42299.0,0.06148564]
[1644657706842,0.25321879,42302.0,42300.0,0.0001]
[1644657711689,0.25321879,42302.0,42301.0,0.00146722]
[1644657712089,0.07825137,42306.0,42301.0,0.00146722]
[1644657712290,0.07877427,42306.0,42301.0,0.00146722]
[1644657712691,0.0005229,42306.0,42301.0,0.00140188]
[1644657713289,0.77060003,42309.0,42301.0,0.00140188]
[1644657713548,0.00052292,42306.0,42301.0,0.00140188]
[1644657714139,0.00052292,42306.0,42299.0,0.05798752]
[1644657714539,0.07068586,42308.0,42299.0,0.05798752]
[1644657714748,0.00052291,42306.0,42299.0,0.05798752]
[1644657715744,0.77060003,42309.0,42299.0,0.05798752]
[1644657715944,0.00052291,42306.0,42299.0,0.05798752]
[1644657716843,0.77060003,42309.0,42303.0,0.00146123]
[1644657717296,0.00052291,42306.0,42303.0,0.00146123]
[1644657718097,0.77060003,42309.0,42303.0,0.00146123]
[1644657718296,0.00052292,42307.0,42303.0,0.00146123]
[1644657718701,0.00052292,42307.0,42304.0,0.0473]
[1644657719298,0.1207,42312.0,42305.0,0.22946283]
[1644657719498,0.1207,42312.0,42306.0,0.0473]
[1644657719499,0.00030914,42308.0,42306.0,0.0473]
[1644657720598,0.03,42313.0,42306.0,0.0473]
[1644657720798,0.00052336,42309.0,42306.0,0.41141715]
[1644657721046,0.00052336,42309.0,42306.0,0.0473]
[1644657721247,0.00052336,42309.0,42306.0,0.46478016]
[1644657721548,0.0011258,42308.0,42306.0,0.7649311]
[1644657721749,0.0011258,42308.0,42307.0,0.44029713]
[1644657721942,0.0011258,42308.0,42307.0,0.67084713]
[1644657722143,0.0011258,42308.0,42307.0,0.97208807]
[1644657722343,0.0011258,42308.0,42307.0,1.1501935]
[1644657723848,0.0011258,42308.0,42307.0,0.89895256]
[1644657724046,0.0011258,42308.0,42307.0,0.37540543]
[1644657724446,0.0011258,42308.0,42307.0,0.1973]
[1644657725692,0.0011258,42308.0,42307.0,0.0973]
[1644657726294,0.0011258,42308.0,42307.0,0.491765]
[1644657726496,0.0011258,42308.0,42307.0,0.84285982]
[1644657726805,0.0005238,42311.0,42307.0,0.76987043]
[1644657727196,0.0005238,42311.0,42307.0,1.26987043]
[1644657727399,0.0005238,42311.0,42308.0,0.05]
[1644657727596,0.0005238,42311.0,42309.0,0.0473]
[1644657727797,0.03,42313.0,42309.0,0.0973]
[1644657728000,0.03,42313.0,42307.0,0.82794789]
[1644657728001,0.38748069,42313.0,42307.0,0.67794789]
[1644657728200,0.00052381,42312.0,42306.0,0.07355]
[1644657728400,0.08935161,42305.0,42303.0,0.0001]
[1644657728643,0.08935161,42305.0,42303.0,0.5001]
[1644657728845,0.08935161,42305.0,42302.0,0.5]
[1644657728846,0.08935161,42305.0,42304.0,0.0001]
[1644657729043,0.08935161,42305.0,42303.0,0.0001]
[1644657729446,0.08935161,42305.0,42302.0,0.0001]
[1644657731443,0.08935161,42305.0,42302.0,0.20097183]
[1644657731642,0.08935161,42305.0,42303.0,0.20097183]
[1644657731942,0.08935161,42305.0,42303.0,0.20087183]
[1644657732146,0.08935161,42305.0,42303.0,0.30097183]
[1644657732393,0.08935161,42305.0,42303.0,0.40087183]
[1644657732595,0.08935161,42305.0,42303.0,0.40097183]
[1644657732794,0.08935161,42305.0,42303.0,0.2]
[1644657733195,0.08935161,42305.0,42303.0,0.2001]
[1644657733394,0.08935161,42305.0,42303.0,0.2]
[1644657733595,0.08935161,42305.0,42303.0,0.05]
[1644657733895,0.08935161,42305.0,42303.0,0.0001]
[1644657734094,0.08935161,42305.0,42300.0,0.65067006]
[1644657734095,0.08935161,42305.0,42301.0,0.0001]
[1644657735096,0.08935161,42305.0,42301.0,0.25119482]
[1644657735295,0.08935161,42305.0,42302.0,0.0001]
[1644657736543,0.08935161,42305.0,42304.0,0.00170261]
[1644657739347,0.08935161,42305.0,42304.0,0.34006025]
[1644657739645,0.08935161,42305.0,42304.0,0.35029411]
[1644657739894,0.08935161,42305.0,42304.0,0.24900261]
[1644657740894,0.08935161,42305.0,42304.0,0.45029411]
[1644657741294,0.08935161,42305.0,42304.0,0.72819674]
[1644657741594,0.08935161,42305.0,42304.0,0.55029411]
[1644657741796,0.08935161,42305.0,42304.0,0.72819674]
[1644657741995,0.00048782,42311.0,42305.0,0.70499584]
[1644657742295,0.00024057,42312.0,42308.0,0.059084]
[1644657742499,0.00048782,42311.0,42309.0,0.0473]
[1644657742695,0.00048782,42311.0,42310.0,0.19065609]
[1644657742894,0.00048782,42311.0,42310.0,0.23795609]
[1644657743094,0.00048782,42311.0,42310.0,0.28795609]
[1644657743294,0.00048782,42311.0,42310.0,0.33795609]
[1644657743549,0.00024057,42312.0,42310.0,0.33795609]
[1644657743741,0.03048785,42313.0,42310.0,0.43795609]
[1644657743943,0.00024057,42312.0,42310.0,0.43795609]
[1644657744141,0.03048785,42313.0,42310.0,0.43795609]
[1644657744341,0.00024057,42312.0,42310.0,0.43795609]
[1644657744541,0.03048785,42313.0,42310.0,0.43795609]
[1644657744741,0.00024057,42312.0,42310.0,0.43795609]
[1644657744941,0.03,42313.0,42310.0,0.43795609]
[1644657745146,0.00024057,42312.0,42310.0,0.43795609]
[1644657745443,0.03,42313.0,42310.0,0.43795609]
[1644657745444,0.03024057,42313.0,42310.0,0.43795609]
[1644657745641,0.03024057,42313.0,42310.0,0.49703709]
[1644657745642,0.00024057,42312.0,42310.0,0.49703709]
[1644657746244,0.03,42313.0,42310.0,0.49703709]
[1644657746548,0.00024057,42312.0,42310.0,0.49703709]
[1644657746744,0.03024057,42313.0,42310.0,0.49837881]
[1644657746944,0.00024057,42312.0,42310.0,0.49837881]
[1644657747144,0.03024057,42313.0,42310.0,0.49837881]
[1644657747389,0.00024057,42312.0,42310.0,0.49837881]
[1644657747589,0.03048784,42313.0,42310.0,0.49837881]
[1644657747792,0.00024057,42312.0,42310.0,0.49837881]
[1644657747989,0.03048784,42313.0,42310.0,0.49837881]
[1644657748189,0.00024057,42312.0,42310.0,0.49837881]
[1644657748392,0.03,42313.0,42310.0,0.54815881]
[1644657748393,0.03048784,42313.0,42310.0,0.54815881]
[1644657748594,0.00024057,42312.0,42310.0,0.54815881]
[1644657748793,0.03048784,42313.0,42310.0,0.54815881]
[1644657748990,0.00024057,42312.0,42310.0,0.54815881]
[1644657749190,0.03048784,42313.0,42310.0,0.54815881]
[1644657749391,0.00024057,42312.0,42310.0,0.54815881]
[1644657749591,0.03,42313.0,42310.0,0.54815881]
[1644657749592,0.03030857,42313.0,42310.0,0.49837881]
[1644657749793,0.03054914,42313.0,42310.0,0.49837881]
[1644657750193,0.03030857,42313.0,42310.0,0.49837881]
[1644657750497,0.03030857,42313.0,42310.0,0.67628144]
[1644657750693,0.03,42313.0,42310.0,0.67628144]
[1644657751142,0.03024057,42313.0,42310.0,0.49837881]
[1644657751344,0.03024057,42313.0,42310.0,0.67583]
[1644657751541,0.03024057,42313.0,42310.0,0.49837881]
[1644657751740,0.03024057,42313.0,42310.0,0.67583]
[1644657751941,0.03024057,42313.0,42310.0,0.49837881]
[1644657752142,0.03,42313.0,42310.0,1.17583]
[1644657752541,0.03024057,42313.0,42310.0,0.99837881]
[1644657753146,0.03,42313.0,42310.0,0.99837881]
[1644657753744,0.03024057,42313.0,42310.0,0.99837881]
[1644657754144,0.03024057,42313.0,42311.0,0.5]
[1644657754342,0.03,42313.0,42312.0,0.0473]
[1644657754808,0.03,42313.0,42312.0,0.0973]
[1644657755103,0.03,42313.0,42312.0,0.1473]
[1644657756705,0.03,42313.0,42312.0,0.14863799]
[1644657762596,0.03,42313.0,42312.0,0.51253018]
[1644657762896,0.03,42313.0,42312.0,0.6590351]
[1644657763295,0.0299395,42313.0,42312.0,1.1590351]
[1644657763697,0.0299395,42313.0,42312.0,1.11253018]
[1644657763899,0.0299395,42313.0,42312.0,1.15848837]
[1644657764696,0.0299395,42313.0,42312.0,1.11253018]
[1644657767549,0.0299395,42313.0,42312.0,1.2899459]
[1644657767747,0.0299395,42313.0,42312.0,1.59133561]
[1644657767947,0.0299395,42313.0,42312.0,1.2899459]
[1644657770195,0.00024046,42314.0,42313.0,0.75]
[1644657770495,0.00052412,42315.0,42313.0,1.98079992]
[1644657770696,0.00052412,42315.0,42314.0,0.36781353]
[1644657770895,0.00052412,42315.0,42314.0,0.69252925]
[1644657771099,0.00024046,42320.0,42314.0,0.74252925]
[1644657771296,0.00052411,42317.0,42315.0,0.74841963]
[1644657771494,0.00052411,42317.0,42316.0,0.0473]
[1644657771694,0.00052411,42317.0,42316.0,0.5473]
[1644657771894,0.00052411,42317.0,42316.0,0.6473]
[1644657772094,0.00052411,42317.0,42316.0,1.05734145]
[1644657772296,0.00024046,42321.0,42316.0,1.05734145]
[1644657772498,0.00076456,42319.0,42316.0,0.6973]
[1644657772696,0.0005241,42319.0,42316.0,0.6973]
[1644657773301,0.0005241,42319.0,42316.0,0.1]
[1644657773555,0.00024046,42322.0,42316.0,0.1]
[1644657773556,0.21626049,42320.0,42316.0,0.1]
[1644657773758,0.21678459,42320.0,42312.0,0.00133799]
[1644657774047,0.0005241,42320.0,42312.0,0.00133799]
[1644657774246,0.25385129,42319.0,42312.0,0.00133799]
[1644657774647,0.25409175,42319.0,42312.0,0.00133799]
[1644657774847,0.00052411,42318.0,42312.0,0.00133799]
[1644657775046,0.00076457,42318.0,42312.0,0.00133799]
[1644657775847,0.00024046,42318.0,42312.0,0.00133799]
[1644657776046,0.00052411,42317.0,42312.0,0.00133799]
[1644657776450,0.00052411,42317.0,42310.0,0.1]
[1644657776646,0.2251455,42312.0,42310.0,0.1]
[1644657776846,0.00052411,42317.0,42310.0,0.1]
[1644657777046,0.00024046,42316.0,42310.0,0.1]
[1644657777291,0.00052413,42313.0,42310.0,0.1]
[1644657778293,0.26089752,42317.0,42310.0,0.1]
[1644657778294,0.00024046,42316.0,42310.0,0.1]
[1644657778494,0.00052413,42314.0,42310.0,0.1]
[1644657779295,0.00052413,42314.0,42310.0,0.05]
[1644657779493,0.00024046,42316.0,42311.0,0.05]
[1644657779693,0.00052413,42314.0,42309.0,0.05]
[1644657779893,0.00052413,42314.0,42309.0,0.08408793]
[1644657780293,0.00052413,42314.0,42309.0,0.38541522]
[1644657780694,0.00024046,42316.0,42309.0,0.38541522]
[1644657780895,0.00052413,42314.0,42309.0,0.48541522]
[1644657781348,0.25666211,42317.0,42312.0,0.00144255]
[1644657781548,0.00024046,42315.0,42312.0,0.00144255]
[1644657781752,0.25666211,42317.0,42312.0,0.00144255]
[1644657781753,0.25690257,42317.0,42312.0,0.00144255]
[1644657781947,0.25666211,42317.0,42312.0,0.00144255]
[1644657783548,0.39289042,42322.0,42312.0,0.00144255]
[1644657783748,0.20015476,42322.0,42312.0,0.00144255]
[1644657784550,0.002,42324.0,42312.0,0.00144255]
[1644657784551,0.00030857,42319.0,42312.0,0.00144255]
[1644657784792,0.00030857,42319.0,42315.0,0.05]
[1644657785393,0.20015476,42322.0,42315.0,0.05]
[1644657785794,0.0005241,42319.0,42315.0,0.05]
[1644657786795,0.003,42323.0,42316.0,0.0473]
[1644657786996,0.0005241,42319.0,42316.0,0.0473]